Workbook

Sheet Anykščiai
A1: VĮ Valstybinių miškų urėdijos Anykščių regioninio padalinio informacija apie perkamus miškininkystės paslaugų kiekius 2025 metams
A2: Eil. | B2: Paslaugų grupės ir paslaugų pavadinimai | D2: Preliminarios paslaugų apimtys
A3: 1 | B3: Želdaviečių paruošimas miškų sodinimui, želdinių ir žėlinių priežiūra, jaunuolynų ugdymas, griovių šlaitų ir pagriovių, pakelių, kvartalinių ir ribinių linijų priežiūra | C3: Mato vnt. | D3: Kavarsko girininkija 1 | E3: Troškūnų girininkija 1
A4: Pirkimo objekto dalies numeris | D4: 1 | E4: 2
A5: 1. | B5: Želdavietės paruošimas miško sodmenų sodinimui šalinant nepageidaujamus medžius, krūmus, žolinę augmeniją | C5: ha
A6: 2. | B6: Medynų ir krūmynų pertvarkymo kirtimai šalinant nepageidaujamus medžius, krūmus, žolinę augmeniją | C6: ha
A7: 3. | B7: Miško želdinių ir žėlinių priežiūra šalinant žabus ir žolinę augmeniją | C7: ha | D7: 35 | E7: 40
A8: 4. | B8: Jaunuolynų ugdymas ir/ar retinimo kirtimai, negaminant likvidinės medienos | C8: ha
A9: 5. | B9: Griovių šlaitų ir pagriovių priežiūra | C9: ha
A10: 6. | B10: Pakelių priežiūra | C10: km
A11: 7. | B11: kvartalinių ir ribinių linijų priežūra | C11: km
D12: =+D5*301+D7*263+D8*299+D9*301+D10*53+D11*126+D6*301 -> 9205 | E12: =+E5*301+E7*263+E8*299+E9*301+E10*53+E11*126+E6*301 -> 10520
D13: =+D12*3*1.3 -> 35899.5 | E13: =+E12*3*1.3 -> 41028
A15: 3. | B15: Miško sodmenų sodinimas, želdinių ir žėlinių medelių ir jų liemenų apsauga nuo kanopinių žvėrių bei vabzdžių daromos žalos | C15: Mato vnt. | D15: Preliminarios paslaugų apimtys
D16: Troškūnų girininkija 2 | E16: Kavarsko girininkija 2 | F16: Dubingių girininkija
B17: Pirkimo objekto numeris | D17: 3 | E17: 4 | F17: 5
A18: 8. | B18: Miško atkūrimas, įveisimas ir atsodinimas (medelių ir krūmų sodinimas) | C18: tūkst. vnt.
A19: 9. | B19: Želdinių, žėlinių apsauga nuo kanopinių žvėrių bei vabzdžių daromos žalos | C19: tūkst. vnt. | D19: 28 | E19: 61 | F19: 85.7
A20: 10. | B20: Želdinių, žėlinių ir medelių kamienų apsauga nuo kanopinių žvėrių daromos žalos | C20: tūkst. vnt. | E20: 1 | F20: 6.2
D21: =+D18*178+D19*27+D20*390 -> 756 | E21: 2037 | F21: 4731.9
D22: =+D21*3*1.3 -> 2948.4 | E22: 7944.3 | F22: 18454.41
A24: 6. | B24: Šiukšlių rinkimo paslaugos | C24: Preliminarios paslaugų apimtys
C25: Mato vnt. | D25: Anykščių RP
A26: Pirkimo objekto dalies numeris | D26: 6
A27: 12. | B27: Šiukšlių rinkimo paslaugos | C27: val. | D27: 350
D28: =+D27*10 -> 3500
D29: =+D28*3*1.3 -> 13650

Sheet Biržai
A1: VĮ Valstybinių miškų urėdijos Biržų regioninio padalinio informacija apie perkamus miškininkystės paslaugų kiekius 2025 metams
A2: 3. | B2: Miško sodmenų sodinimas, želdinių ir žėlinių medelių ir jų liemenų apsauga nuo kanopinių žvėrių bei vabzdžių daromos žalos | C2: Preliminarios paslaugų apimtys
C3: Mato vnt. | D3: Linkuvos girininkija
A4: Pirkimo objekto dalies numeris | D4: 7
A5: 8. | B5: Miško atkūrimas, įveisimas ir atsodinimas (medelių ir krūmų sodinimas) | C5: tūkst. vnt.
A6: 9. | B6: Želdinių, žėlinių apsauga nuo kanopinių žvėrių bei vabzdžių daromos žalos | C6: tūkst. vnt. | D6: 200
A7: 10. | B7: Želdinių, žėlinių ir medelių kamienų apsauga nuo kanopinių žvėrių daromos žalos | C7: tūkst. vnt.
D8: =+D5*178+D6*27+D7*390 -> 5400
D9: =+D8*3*1.3 -> 21060

Sheet Dubrava
A1: VĮ Valstybinių miškų urėdijos Dubravos regioninio padalinio informacija apie perkamus miškininkystės paslaugų kiekius 2025 metams
A2: 3. | B2: Miško sodmenų sodinimas, želdinių ir žėlinių medelių ir jų liemenų apsauga nuo kanopinių žvėrių bei vabzdžių daromos žalos | C2: Preliminarios paslaugų apimtys
C3: Mato vnt. | D3: Padauguvos girininkija | E3: Sitkūnų girininkija
A4: Pirkimo objekto dalies numeris | D4: 8 | E4: 9
A5: 8. | B5: Miško atkūrimas, įveisimas ir atsodinimas (medelių ir krūmų sodinimas) | C5: tūkst. vnt.
A6: 9. | B6: Želdinių, žėlinių apsauga nuo kanopinių žvėrių bei vabzdžių daromos žalos | C6: tūkst. vnt. | D6: 210 | E6: 300
A7: 10. | B7: Želdinių, žėlinių ir medelių kamienų apsauga nuo kanopinių žvėrių daromos žalos | C7: tūkst. vnt. | D7: 1 | E7: 0.75
D8: =+D5*178+D6*27+D7*390 -> 6060 | E8: =+E5*178+E6*27+E7*390 -> 8392.5
D9: =+D8*3*1.3 -> 23634 | E9: =+E8*3*1.3 -> 32730.75

Sheet Kazlų Rūda
A1: VĮ Valstybinių miškų urėdijos Kazlų Rųdos regioninio padalinio informacija apie perkamus miškininkystės paslaugų kiekius
A2: 6. | B2: Šiukšlių rinkimo paslaugos | C2: Mato vnt. | D2: Preliminarios paslaugų apimtys
D3: Agurkiškės girininkija | E3: Bagotosios girininkija | F3: Jūrės girininkija | G3: Kalvarijos girininkija | H3: Kazlų Rūdos girininkija | I3: Pajevonio girininkija | J3: Šunskų girininkija
A4: Pirkimo objekto dalies numeris | D4: 10 | E4: 11 | F4: 12 | G4: 13 | H4: 14 | I4: 15 | J4: 16
A5: 12. | B5: Šiukšlių rinkimo paslaugos | C5: val. | D5: 76 | E5: 32 | F5: 44 | G5: 102 | H5: 164 | I5: 40 | J5: 63
D6: =+D5*10 -> 760 | E6: =+E5*10 -> 320 | F6: 440 | G6: 1020 | H6: 1640 | I6: 400 | J6: 630
D7: =+D6*3*1.3 -> 2964 | E7: =+E6*3*1.3 -> 1248 | F7: 1716 | G7: 3978 | H7: 6396 | I7: 1560 | J7: 2457

Sheet Kretinga
A1: VĮ Valstybinių miškų urėdijos Kretingos regioninio padalinio informacija apie perkamus miškininkystės paslaugų kiekius 2025 metams
A2: Eil. | B2: Paslaugų grupės ir paslaugų pavadinimai | C2: Preliminarios paslaugų apimtys
A3: 1 | B3: Želdaviečių paruošimas miškų sodinimui, želdinių ir žėlinių priežiūra, jaunuolynų ugdymas, griovių šlaitų ir pagriovių, pakelių, kvartalinių ir ribinių linijų priežiūra | C3: Mato vnt. | D3: Juodkrantės, Nidos girininkijos 1
A4: Pirkimo objekto dalies numeris | D4: 17
A5: 1. | B5: Želdavietės paruošimas miško sodmenų sodinimui šalinant nepageidaujamus medžius, krūmus, žolinę augmeniją | C5: ha
A6: 2. | B6: Medynų ir krūmynų pertvarkymo kirtimai šalinant nepageidaujamus medžius, krūmus, žolinę augmeniją | C6: ha | D6: 25
A7: 3. | B7: Miško želdinių ir žėlinių priežiūra šalinant žabus ir žolinę augmeniją | C7: ha
A8: 4. | B8: Jaunuolynų ugdymas ir/ar retinimo kirtimai, negaminant likvidinės medienos | C8: ha
A9: 5. | B9: Griovių šlaitų ir pagriovių priežiūra | C9: ha
A10: 6. | B10: Pakelių priežiūra | C10: km
A11: 7. | B11: kvartalinių ir ribinių linijų priežūra | C11: km
D12: =+D5*301+D7*263+D8*299+D9*301+D10*53+D11*126+D6*301 -> 7525
D13: =+D12*3*1.3 -> 29347.5
A15: 3. | B15: Miško sodmenų sodinimas, želdinių ir žėlinių medelių ir jų liemenų apsauga nuo kanopinių žvėrių bei vabzdžių daromos žalos | C15: Preliminarios paslaugų apimtys
C16: Mato vnt. | D16: Juodkrantės, Nidos girininkijos 2 | E16: Juodkrantės, Nidos girininkijos 3 | F16: Juodkrantės, Nidos girininkijos 4
A17: Pirkimo objekto dalies numeris | D17: 18 | E17: 19 | F17: 20
A18: 8. | B18: Miško atkūrimas, įveisimas ir atsodinimas (medelių ir krūmų sodinimas) | C18: tūkst. vnt. | D18: 30 | E18: 15 | F18: 15
A19: 9. | B19: Želdinių, žėlinių apsauga nuo kanopinių žvėrių bei vabzdžių daromos žalos | C19: tūkst. vnt.
A20: 10. | B20: Želdinių, žėlinių ir medelių kamienų apsauga nuo kanopinių žvėrių daromos žalos | C20: tūkst. vnt.
D21: =+D18*178+D19*27+D20*390 -> 5340 | E21: =+E18*178+E19*27+E20*390 -> 2670 | F21: 2670
D22: =+D21*3*1.3 -> 20826 | E22: =+E21*3*1.3 -> 10413 | F22: 10413

Sheet Kuršėnai
A1: VĮ Valstybinių miškų urėdijos Kuršėnų regioninio padalinio informacija apie perkamus miškininkystės paslaugų kiekius 2025 metams
A2: 6. | B2: Šiukšlių rinkimo paslaugos | C2: Preliminarios paslaugų apimtys
C3: Mato vnt. | D3: Kuršėnų RP
A4: Pirkimo objekto dalies numeris | D4: 21
A5: 12. | B5: Šiukšlių rinkimo paslaugos | C5: val. | D5: 500
D6: =+D5*10 -> 5000
D7: =+D6*3*1.3 -> 19500

Sheet Mažeikiai
A1: VĮ Valstybinių miškų urėdijos Mažeikių regioninio padalinio informacija apie perkamus miškininkystės paslaugų kiekius
A2: 2 | B2: Želdavietės paruošimas miško sodmenų sodinimui cheminiu būdu pašalinant nepageidaujamą augmeniją | C2: Mato vnt. | D2: Preliminarios paslaugų apimtys
D3: Mažeikių RP 1
A4: Pirkimo objekto dalies numeris | D4: 22
A5: 7. | B5: Želdavietės paruošimas miško sodmenų sodinimui cheminiu būdu pašalinant nepageidaujamą augmeniją | C5: ha | D5: 35
D6: =+D5*111 -> 3885
D7: =+D6*3*1.3 -> 15151.5
A9: 3. | B9: Miško sodmenų sodinimas, želdinių ir žėlinių medelių ir jų liemenų apsauga nuo kanopinių žvėrių bei vabzdžių daromos žalos | C9: Mato vnt. | D9: Preliminarios paslaugų apimtys
D10: Akmenės girininkija
A11: Pirkimo objekto dalies numeris | D11: 23
A12: 8. | B12: Miško atkūrimas, įveisimas ir atsodinimas (medelių ir krūmų sodinimas) | C12: tūkst. vnt.
A13: 9. | B13: Želdinių, žėlinių apsauga nuo kanopinių žvėrių bei vabzdžių daromos žalos | C13: tūkst. vnt. | D13: 160
A14: 10. | B14: Želdinių, žėlinių ir medelių kamienų apsauga nuo kanopinių žvėrių daromos žalos | C14: tūkst. vnt. | D14: 10
D15: =+D12*178+D13*27+D14*390 -> 8220
D16: =+D15*3*1.3 -> 32058
A18: 5. | B18: Sodmenų transportavimo paslaugos | C18: Mato vnt. | D18: Preliminarios paslaugų apimtys
D19: Mažeikių RP 2
A20: Pirkimo objekto dalies numeris | D20: 24
A21: 12. | B21: Sodmenų transportavimo paslaugos | C21: km | D21: 2000
D22: =+D21*1.5 -> 3000
D23: =+D22*3*1.3 -> 11700

Sheet Nemenčinė
A1: VĮ Valstybinių miškų urėdijos Nemenčinės regioninio padalinio informacija apie perkamus miškininkystės paslaugų kiekius 2025 metams
A2: Eil. | B2: Paslaugų grupės ir paslaugų pavadinimai | C2: Preliminarios paslaugų apimtys
A3: 1 | B3: Želdaviečių paruošimas miškų sodinimui, želdinių ir žėlinių priežiūra, jaunuolynų ugdymas, griovių šlaitų ir pagriovių, pakelių, kvartalinių ir ribinių linijų priežiūra | C3: Mato vnt. | D3: Arvydų girininkija 1 | E3: Arvydų girininkija 2
A4: Pirkimo objekto dalies numeris | D4: 25 | E4: 26
A5: 1. | B5: Želdavietės paruošimas miško sodmenų sodinimui šalinant nepageidaujamus medžius, krūmus, žolinę augmeniją | C5: ha | D5: 6
A6: 2. | B6: Medynų ir krūmynų pertvarkymo kirtimai šalinant nepageidaujamus medžius, krūmus, žolinę augmeniją | C6: ha
A7: 3. | B7: Miško želdinių ir žėlinių priežiūra šalinant žabus ir žolinę augmeniją | C7: ha | D7: 50 | E7: 45
A8: 4. | B8: Jaunuolynų ugdymas ir/ar retinimo kirtimai, negaminant likvidinės medienos | C8: ha | D8: 10 | E8: 20
A9: 5. | B9: Griovių šlaitų ir pagriovių priežiūra | C9: ha | D9: 1
A10: 6. | B10: Pakelių priežiūra | C10: km
A11: 7. | B11: kvartalinių ir ribinių linijų priežūra | C11: km | D11: 6
D12: =+D5*301+D7*263+D8*299+D9*301+D10*53+D11*126+D6*301 -> 19003 | E12: =+E5*301+E7*263+E8*299+E9*301+E10*53+E11*126+E6*301 -> 17815
D13: =+D12*3*1.3 -> 74111.7 | E13: =+E12*3*1.3 -> 69478.5

Sheet Panevėžys
A1: VĮ Valstybinių miškų urėdijos Panevėžio regioninio padalinio informacija apie perkamus miškininkystės paslaugų kiekius 2025 metams
A2: Eil. | B2: Paslaugų grupės ir paslaugų pavadinimai | C2: Mato vnt. | D2: Preliminarios paslaugų apimtys
A3: 1 | B3: Želdaviečių paruošimas miškų sodinimui, želdinių ir žėlinių priežiūra, jaunuolynų ugdymas, griovių šlaitų ir pagriovių, pakelių, kvartalinių ir ribinių linijų priežiūra | D3: Panevėžio RP 1
A4: Pirkimo objekto dalies numeris | D4: 27
A5: 1. | B5: Želdavietės paruošimas miško sodmenų sodinimui šalinant nepageidaujamus medžius, krūmus, žolinę augmeniją | C5: ha | D5: 20
A6: 2. | B6: Medynų ir krūmynų pertvarkymo kirtimai šalinant nepageidaujamus medžius, krūmus, žolinę augmeniją | C6: ha | D6: 0
A7: 3. | B7: Miško želdinių ir žėlinių priežiūra šalinant žabus ir žolinę augmeniją | C7: ha | D7: 5
A8: 4. | B8: Jaunuolynų ugdymas ir/ar retinimo kirtimai, negaminant likvidinės medienos | C8: ha | D8: 5
A9: 5. | B9: Griovių šlaitų ir pagriovių priežiūra | C9: ha | D9: 0
A10: 6. | B10: Pakelių priežiūra | C10: km | D10: 0
A11: 7. | B11: kvartalinių ir ribinių linijų priežūra | C11: km | D11: 5
D12: =+D5*301+D7*263+D8*299+D9*301+D10*53+D11*126+D6*301 -> 9460
D13: =+D12*3*1.3 -> 36894
A15: 6 | B15: Šiukšlių rinkimo paslaugos | C15: Mato vnt. | D15: Preliminarios paslaugų apimtys
D16: Panevėžio RP 2
A17: Pirkimo objekto dalies numeris | D17: 28
A18: 11. | B18: Šiukšlių rinkimo paslaugos | C18: val. | D18: 1300
D19: =+D18*10 -> 13000
D20: =+D19*3*1.3 -> 50700

Sheet Prienai
A1: VĮ Valstybinių miškų urėdijos Prienų regioninio padalinio informacija apie perkamus miškininkystės paslaugų kiekius 2025 metams
A2: 2 | B2: Želdavietės paruošimas miško sodmenų sodinimui cheminiu būdu pašalinant nepageidaujamą augmeniją | C2: Preliminarios paslaugų apimtys
C3: Mato vnt. | D3: Prienų RP 1
A4: Pirkimo objekto dalies numeris | D4: 29
A5: 7. | B5: Želdavietės paruošimas miško sodmenų sodinimui cheminiu būdu pašalinant nepageidaujamą augmeniją | C5: ha | D5: 28
D6: =+D5*111 -> 3108
D7: =+D6*3*1.3 -> 12121.2
A9: 6 | B9: Šiukšlių rinkimo paslaugos | C9: Mato vnt. | D9: Preliminarios paslaugų apimtys
D10: Prienų RP 2
A11: Pirkimo objekto dalies numeris | D11: 30
A12: 11. | B12: Šiukšlių rinkimo paslaugos | C12: val. | D12: 750
D13: =+D12*10 -> 7500
D14: =+D13*3*1.3 -> 29250

Sheet Radviliškis
A1: VĮ Valstybinių miškų urėdijos Radviliškio regioninio padalinio informacija apie perkamus miškininkystės paslaugų kiekius 2025 metams
A2: 3. | B2: Miško sodmenų sodinimas, želdinių ir žėlinių medelių ir jų liemenų apsauga nuo kanopinių žvėrių bei vabzdžių daromos žalos | C2: Preliminarios paslaugų apimtys
C3: Mato vnt. | D3: Ąžuolo, Gudžiūnų girininkijos
A4: Pirkimo objekto dalies numeris | D4: 31
A5: 8. | B5: Miško atkūrimas, įveisimas ir atsodinimas (medelių ir krūmų sodinimas) | C5: tūkst. vnt.
A6: 9. | B6: Želdinių, žėlinių apsauga nuo kanopinių žvėrių bei vabzdžių daromos žalos | C6: tūkst. vnt.
A7: 10. | B7: Želdinių, žėlinių ir medelių kamienų apsauga nuo kanopinių žvėrių daromos žalos | C7: tūkst. vnt. | D7: 35
D8: =+D5*178+D6*27+D7*390 -> 13650
D9: =+D8*3*1.3 -> 53235

Sheet Raseiniai
A1: VĮ Valstybinių miškų urėdijos Raseinių regioninio padalinio informacija apie perkamus miškininkystės paslaugų kiekius 2025 metams
A2: 2 | B2: Želdavietės paruošimas miško sodmenų sodinimui cheminiu būdu pašalinant nepageidaujamą augmeniją | C2: Preliminarios paslaugų apimtys
C3: Mato vnt. | D3: Raseinių RP
A4: Pirkimo objekto dalies numeris | D4: 32
A5: 7. | B5: Želdavietės paruošimas miško sodmenų sodinimui cheminiu būdu pašalinant nepageidaujamą augmeniją | C5: ha | D5: 93
D6: =+D5*111 -> 10323
D7: =+D6*3*1.3 -> 40259.7

Sheet Šalčininkai
A1: VĮ Valstybinių miškų urėdijos Šalčininkų regioninio padalinio informacija apie perkamus miškininkystės paslaugų kiekius 2025 metams
A2: 6. | B2: Šiukšlių rinkimo paslaugos | C2: Preliminarios paslaugų apimtys
C3: Mato vnt. | D3: Parudaminos girininkija | E3: Poškonių girininkija | F3: Šalčininkėlių girininkija
A4: Pirkimo objekto dalies numeris | D4: 33 | E4: 34 | F4: 35
A5: 12. | B5: Šiukšlių rinkimo paslaugos | C5: val. | D5: 80 | E5: 80 | F5: 30
D6: =+D5*10 -> 800 | E6: =+E5*10 -> 800 | F6: 300
D7: =+D6*3*1.3 -> 3120 | E7: =+E6*3*1.3 -> 3120 | F7: 1170

Sheet Trakai
A1: VĮ Valstybinių miškų urėdijos Trakų regioninio padalinio informacija apie perkamus miškininkystės paslaugų kiekius 2025 metams
A2: 6. | B2: Šiukšlių rinkimo paslaugos | C2: Preliminarios paslaugų apimtys
C3: Mato vnt. | D3: Trakų RP
A4: Pirkimo objekto dalies numeris | D4: 36
A5: 12. | B5: Šiukšlių rinkimo paslaugos | C5: val. | D5: 1000
D6: =+D5*10 -> 10000
D7: =+D6*3*1.3 -> 39000

Sheet Ukmergės
A1: VĮ Valstybinių miškų urėdijos Ukmergės regioninio padalinio informacija apie perkamus miškininkystės paslaugų kiekius 2025 metams
A2: Eil. | B2: Paslaugų grupės ir paslaugų pavadinimai | C2: Preliminarios paslaugų apimtys
A3: 1 | B3: Želdaviečių paruošimas miškų sodinimui, želdinių ir žėlinių priežiūra, jaunuolynų ugdymas, griovių šlaitų ir pagriovių, pakelių, kvartalinių ir ribinių linijų priežiūra | C3: Mato vnt. | D3: Taujėnų girininkija 1 | E3: Taujėnų girininkija 2
A4: Pirkimo objekto dalies numeris | D4: 37 | E4: 38
A5: 1. | B5: Želdavietės paruošimas miško sodmenų sodinimui šalinant nepageidaujamus medžius, krūmus, žolinę augmeniją | C5: ha
A6: 2. | B6: Medynų ir krūmynų pertvarkymo kirtimai šalinant nepageidaujamus medžius, krūmus, žolinę augmeniją | C6: ha
A7: 3. | B7: Miško želdinių ir žėlinių priežiūra šalinant žabus ir žolinę augmeniją | C7: ha | D7: 60 | E7: 60
A8: 4. | B8: Jaunuolynų ugdymas ir/ar retinimo kirtimai, negaminant likvidinės medienos | C8: ha
A9: 5. | B9: Griovių šlaitų ir pagriovių priežiūra | C9: ha | D9: 3 | E9: 3
A10: 6. | B10: Pakelių priežiūra | C10: km | D10: 4 | E10: 4
A11: 7. | B11: kvartalinių ir ribinių linijų priežūra | C11: km | D11: 8 | E11: 8
D12: =+D5*301+D7*263+D8*299+D9*301+D10*53+D11*126+D6*301 -> 17903 | E12: =+E5*301+E7*263+E8*299+E9*301+E10*53+E11*126 -> 17903
D13: =+D12*3*1.3 -> 69821.7 | E13: =+E12*3*1.3 -> 69821.7
